fUSD/lending_fUSD_20260507
["ID","MTS","AMOUNT","RATE_DAILY","PERIOD"]
[421789462,1778160477000,168.051491,0.00026849,120]
[421789464,1778160498000,160.0,0.000301,120]
[421789465,1778160559000,-2000.0,0.00013409,2]
[421789467,1778160559000,-1348.172,0.00013409,2]
[421789466,1778160559000,-160.035,0.00013409,2]
[421789470,1778160559000,-300.0,0.000135,4]
[421789468,1778160559000,-200.0,0.000135,4]
[421789471,1778160559000,-150.0,0.0001358,2]
[421789472,1778160559000,-200.0,0.0001358,2]
[421789474,1778160559000,-2926.9968,0.00013598,2]
[421789473,1778160559000,-300.0,0.00013597,2]
[421789475,1778160559000,-9812.79955578,0.00013598,2]
[421789469,1778160559000,-200.0,0.000135,4]
[421789476,1778160613000,-266.56,0.00013118,2]
[421789493,1778160631000,-2500.0,0.00013598,2]
[421789490,1778160631000,-176403.74,0.00013118,2]
[421789486,1778160631000,-451.28410069,0.00013117,2]
[421789488,1778160631000,-149.70077343,0.00013117,2]
[421789485,1778160631000,-299.30831175,0.00013117,2]
[421789487,1778160631000,-299.70681413,0.00013117,2]
[421789483,1778160631000,-0.59241244,0.00013117,2]
[421789484,1778160631000,-149.40758756,0.00013117,2]
[421789492,1778160631000,-98975.9055,0.00013598,2]
[421789497,1778160631000,-500.0,0.000136,4]
[421789491,1778160631000,-23326.75884422,0.00013598,2]
[421789489,1778160631000,-248.0,0.00013117,2]
[421789495,1778160631000,-6358.93775193,0.00013599,2]
[421789494,1778160631000,-5000.0,0.00013598,2]
[421789502,1778160631000,-1001.85202506,0.00013697,2]
[421789504,1778160631000,-153864.72130988,0.00013698,2]
[421789503,1778160631000,-150.0,0.00013697,2]
[421789505,1778160631000,-1652.648,0.00013698,2]
[421789499,1778160631000,-6887.79,0.00013671,2]
[421789506,1778160631000,-675.352,0.00013698,2]
[421789500,1778160631000,-387.14954167,0.00013688,2]
[421789498,1778160631000,-700.0,0.000136,4]
[421789496,1778160631000,-400.0,0.000136,4]
[421789501,1778160631000,-1000.0,0.00013697,2]
[421789554,1778160637000,-500.0,0.00013773,2]
[421789548,1778160637000,-1100.0,0.000137,5]
[421789550,1778160637000,-476.44,0.000137,2]
[421789547,1778160637000,-700.0,0.000137,5]
[421789546,1778160637000,-700.0,0.000137,5]
[421789540,1778160637000,-304.0,0.00013698,2]
[421789545,1778160637000,-1000.0,0.00013699,2]
[421789544,1778160637000,-507.67391504,0.00013698,2]
[421789543,1778160637000,-2342646.29659931,0.00013698,2]
[421789542,1778160637000,-856.98209081,0.00013698,2]
[421789549,1778160637000,-977.84439097,0.000137,2]
[421789555,1778160637000,-387.14954167,0.00013789,2]
[421789551,1778160637000,-296.11744541,0.000137,2]
[421789553,1778160637000,-799.96,0.00013753,2]
[421789556,1778160637000,-1500000.0,0.00013799,2]
[421789552,1778160637000,-433.51134911,0.000137,2]
[421789567,1778160637000,-2325.88,0.00014171,2]
[421789561,1778160637000,-10000.0,0.00013894,2]
[421789558,1778160637000,-1000.0,0.000138,5]
[421789564,1778160637000,-1800.0,0.000139,5]
[421789563,1778160637000,-1300.0,0.000139,5]
[421789568,1778160637000,-255.0,0.00014219,2]
[421789562,1778160637000,-1100.0,0.000139,5]
[421789560,1778160637000,-2325.88,0.00013825,2]
[421789557,1778160637000,-900.0,0.000138,5]
[421789566,1778160637000,-12014.61704422,0.0001399,2]
[421789559,1778160637000,-1400.0,0.000138,5]
[421789565,1778160637000,-161.81,0.00013986,2]
[421789619,1778160638000,-166.49,0.00014926,2]
[421789634,1778160638000,-500.0,0.00014932,2]
[421789632,1778160638000,-150.0,0.00014932,2]
[421789627,1778160638000,-500.0,0.00014932,2]
[421789672,1778160638000,-608.0,0.00014932,2]
[421789625,1778160638000,-150.0,0.00014932,2]
[421789636,1778160638000,-608.0,0.00014932,2]
[421789621,1778160638000,-500.0,0.00014932,2]
[421789614,1778160638000,-500.0,0.00014871,2]
[421789623,1778160638000,-608.0,0.00014932,2]
[421789630,1778160638000,-608.0,0.00014932,2]
[421789638,1778160638000,-150.0,0.00014932,2]
[421789640,1778160638000,-500.0,0.00014932,2]
[421789644,1778160638000,-500.0,0.00014932,2]
[421789648,1778160638000,-468.17760146,0.00014932,2]
[421789642,1778160638000,-273.6731824,0.00014932,2]
[421789650,1778160638000,-608.0,0.00014932,2]
[421789656,1778160638000,-608.0,0.00014932,2]
[421789652,1778160638000,-608.0,0.00014932,2]
[421789654,1778160638000,-150.0,0.00014932,2]
[421789659,1778160638000,-247.96584717,0.00014932,2]
[421789676,1778160638000,-608.0,0.00014932,2]
[421789674,1778160638000,-608.0,0.00014932,2]
[421789646,1778160638000,-608.0,0.00014932,2]
[421789616,1778160638000,-2000.0,0.00014899,2]
[421789575,1778160638000,-2325.88,0.00014516,2]
[421789608,1778160638000,-500.0,0.00014871,2]
[421789671,1778160638000,-608.0,0.00014932,2]
[421789569,1778160638000,-351.55653234,0.00014321,2]
[421789570,1778160638000,-166.49,0.00014323,2]
[421789571,1778160638000,-167.14,0.00014386,2]
[421789577,1778160638000,-438.43,0.00014593,2]
[421789579,1778160638000,-209.56355865,0.00014605,2]
[421789573,1778160638000,-1680.0,0.00014429,2]
[421789580,1778160638000,-166.49,0.00014625,2]
[421789572,1778160638000,-320.31147582,0.000144,2]
[421789585,1778160638000,-300.0,0.0001475,2]
[421789582,1778160638000,-300.0,0.0001475,2]
[421789586,1778160638000,-300.0,0.0001475,2]
[421789594,1778160638000,-397.12423556,0.0001475,2]
[421789596,1778160638000,-250.0,0.0001475,2]
[421789590,1778160638000,-300.0,0.0001475,2]
[421789588,1778160638000,-300.0,0.0001475,2]
[421789592,1778160638000,-616.02770273,0.0001475,2]
[421789600,1778160638000,-2325.88,0.00014862,2]
[421789598,1778160638000,-500.0,0.00014807,2]
[421789602,1778160638000,-500.0,0.00014871,2]
[421789604,1778160638000,-466.10746956,0.00014871,2]
[421789606,1778160638000,-500.0,0.00014871,2]
[421789611,1778160638000,-500.0,0.00014871,2]
[421789612,1778160638000,-500.0,0.00014871,2]
[421789669,1778160638000,-608.0,0.00014932,2]
[421789748,1778160638000,-167.14,0.00016761,2]
[421789661,1778160638000,-608.0,0.00014932,2]
[421789746,1778160638000,-983.7392912,0.00016515,2]
[421789740,1778160638000,-2000.0,0.00016389,2]
[421789742,1778160638000,-213.54098388,0.00016457,7]
[421789744,1778160638000,-1006.48136939,0.00016515,2]
[421789750,1778160638000,-6358.93775191,0.00017356,2]
[421789754,1778160638000,-438.43,0.00017512,2]
[421789752,1778160638000,-1591.0,0.00017459,2]
[421789758,1778160638000,-299.99,0.00018533,4]
[421789756,1778160638000,-15761.03,0.00018533,2]
[421789762,1778160638000,-3217.98,0.00018533,2]
[421789760,1778160638000,-999.99,0.00018533,2]
[421789764,1778160638000,-325.2,0.00018533,2]
[421789766,1778160638000,-9999.99,0.00018533,2]
[421789774,1778160638000,-177.94081992,0.000192,14]
[421789778,1778160638000,-5000.0,0.0002,2]
[421789776,1778160638000,-799.96,0.00019254,2]
[421789768,1778160638000,-150.99,0.00018533,2]
[421789770,1778160638000,-17296.2715821,0.00018913,2]
[421789780,1778160638000,-476.44,0.0002,2]
[421789782,1778160638000,-6358.93775191,0.00021114,2]
[421789786,1778160638000,-543.32931302,0.00021659,2]
[421789784,1778160638000,-214.63993676,0.00021617,2]
[421789678,1778160638000,-608.0,0.00014932,2]
[421789736,1778160638000,-1500.0,0.00015967,2]
[421789738,1778160638000,-438.43,0.00016053,2]
[421789772,1778160638000,-20386.33443546,0.00019,2]
[421789730,1778160638000,-166.49,0.00015831,2]
[421789663,1778160638000,-608.0,0.00014932,2]
[421789734,1778160638000,-1500.0,0.00015967,2]
[421789667,1778160638000,-608.0,0.00014932,2]
[421789665,1778160638000,-608.0,0.00014932,2]
[421789681,1778160638000,-608.0,0.00014932,2]
[421789684,1778160638000,-608.0,0.00014932,2]
[421789692,1778160638000,-150.0,0.00014932,2]
[421789683,1778160638000,-608.0,0.00014932,2]
[421789682,1778160638000,-608.0,0.00014932,2]
[421789688,1778160638000,-608.0,0.00014932,2]
[421789690,1778160638000,-610.27538277,0.00014932,2]
[421789711,1778160638000,-2325.88,0.00015208,2]
[421789685,1778160638000,-608.0,0.00014932,2]
[421789709,1778160638000,-1000.0,0.00015045,2]
[421789732,1778160638000,-2351.0,0.00015872,2]
[421789722,1778160638000,-503.11139705,0.00015419,2]
[421789719,1778160638000,-1000.0,0.00015419,2]
[421789723,1778160638000,-1000.0,0.00015419,2]
[421789726,1778160638000,-166.49,0.00015529,2]
[421789727,1778160638000,-476.44,0.000156,2]
[421789715,1778160638000,-283.0,0.00015413,2]
[421789713,1778160638000,-166.49,0.00015228,2]
[421789707,1778160638000,-214.67231335,0.00014932,2]
[421789717,1778160638000,-1002.24165791,0.00015419,2]
[421789868,1778160639000,-200.0,0.0002652,2]
[421789838,1778160639000,-508.33347839,0.00025901,2]
[421789854,1778160639000,-150.0,0.00026359,4]
[421789844,1778160639000,-156.06,0.00026027,7]
[421789846,1778160639000,-515.94629028,0.00026116,2]
[421789852,1778160639000,-150.0,0.00026359,4]
[421789858,1778160639000,-150.0,0.00026359,4]
[421789860,1778160639000,-150.0,0.00026359,4]
[421789862,1778160639000,-150.0,0.00026359,4]
[421789864,1778160639000,-156.06,0.0002637,30]
[421789866,1778160639000,-154.78,0.00026484,30]
[421789873,1778160639000,-156.06,0.00026712,2]
[421789898,1778160639000,-1455.11982277,0.00027397,2]
[421789876,1778160639000,-154.78,0.00026849,2]
[421789878,1778160639000,-279.700248,0.00026852,14]
[421789875,1778160639000,-150.0,0.00026847,4]
[421789880,1778160639000,-155.0,0.00026904,2]
[421789882,1778160639000,-543.32931302,0.00027032,2]
[421789884,1778160639000,-156.06,0.00027055,7]
[421789892,1778160639000,-3626.0,0.0002722,2]
[421789894,1778160639000,-150.0,0.00027335,4]
[421789896,1778160639000,-156.06,0.00027397,30]
[421789888,1778160639000,-154.78,0.00027214,7]
[421789890,1778160639000,-6044.0,0.0002722,2]
[421789856,1778160639000,-150.0,0.00026359,4]
[421789871,1778160639000,-508.33347839,0.00026621,2]
[421789849,1778160639000,-150.0,0.00026359,4]
[421789796,1778160639000,-543.32931302,0.00024346,2]
[421789848,1778160639000,-154.78,0.00026119,7]
[421789901,1778160639000,-10857.83,0.00027397,10]
[421789788,1778160639000,-5000.0,0.00021918,2]
[421789800,1778160639000,-154.78,0.00024658,2]
[421789798,1778160639000,-1000.0,0.00024658,2]
[421789794,1778160639000,-3626.0,0.0002422,2]
[421789792,1778160639000,-6044.0,0.0002422,2]
[421789804,1778160639000,-6358.93775191,0.00024871,2]
[421789806,1778160639000,-250.0,0.00025,2]
[421789791,1778160639000,-649.0,0.00022107,5]
[421789802,1778160639000,-156.06,0.00024658,2]
[421789808,1778160639000,-156.06,0.00025,7]
[421789810,1778160639000,-154.78,0.00025023,7]
[421789842,1778160639000,-231.22,0.00026,14]
[421789812,1778160639000,-508.33347839,0.00025279,2]
[421789830,1778160639000,-154.78,0.00025753,2]
[421789824,1778160639000,-9380.4243764,0.00025469,2]
[421789826,1778160639000,-508.33347839,0.00025589,2]
[421789814,1778160639000,-156.06,0.00025342,30]
[421789828,1778160639000,-156.06,0.00025685,2]
[421789816,1778160639000,-154.78,0.00025388,30]
[421789822,1778160639000,-567812.3320848,0.00025469,2]
[421789832,1778160639000,-515.94629028,0.00025809,2]
[421789818,1778160639000,-31522.8391209,0.00025415,2]
[421789820,1778160639000,-508.33347839,0.00025457,2]
[421789836,1778160639000,-476.44,0.000259,7]
[421789840,1778160639000,-508.33347839,0.00025938,2]
[421789834,1778160639000,-168.051492,0.00025832,14]
[421789905,1778160639000,-5291.36,0.000274,14]
[421789886,1778160639000,-150.0,0.00027091,4]
[421789907,1778160639000,-17930.6,0.000274,7]
[421789982,1778160639000,-150.09,0.00029172,2]
[421789975,1778160639000,-160.78,0.00029052,7]
[421789979,1778160639000,-160.78,0.00029112,30]
[421789977,1778160639000,-150.09,0.00029112,30]
[421789984,1778160639000,-160.78,0.00029172,2]
[421789992,1778160639000,-160.87,0.00029232,7]
[421789989,1778160639000,-150.17,0.00029232,7]
[421789997,1778160639000,-150.00000001,0.00029288,7]
[421789995,1778160639000,-150.0,0.00029288,7]
[421790002,1778160639000,-156.35890724,0.00029288,7]
[421790013,1778160639000,-17930.6,0.000298,7]
[421790011,1778160639000,-5291.36,0.000298,14]
[421789971,1778160639000,-2151.83,0.00029,7]
[421790000,1778160639000,-150.0,0.00029288,7]
[421790009,1778160639000,-543.32931302,0.00029719,2]
[421790004,1778160639000,-150.0,0.00029288,7]
[421790015,1778160639000,-522.0,0.00029835,5]
[421790018,1778160639000,-476.44,0.000299,7]
[421790022,1778160639000,-200.0,0.00030137,2]
[421790024,1778160639000,-192.26329149,0.00030137,40]
[421790020,1778160639000,-5000.0,0.0003,2]
[421790029,1778160639000,-2151.83,0.000302,7]
[421790033,1778160639000,-3626.0,0.0003022,2]
[421790027,1778160639000,-366.2,0.00030137,2]
[421790035,1778160639000,-151.0,0.00030239,2]
[421789903,1778160639000,-2151.83,0.000274,7]
[421790006,1778160639000,-150.0,0.00029534,2]
[421789968,1778160639000,-160.78,0.00028991,2]
[421790031,1778160639000,-6044.0,0.0003022,2]
[421789965,1778160639000,-150.09,0.00028991,2]
[421789973,1778160639000,-150.09,0.00029052,7]
[421789909,1778160639000,-154.78,0.0002758,30]
[421789930,1778160639000,-150.09,0.0002863,2]
[421789914,1778160639000,-433.51134911,0.000278,2]
[421789936,1778160639000,-160.78,0.0002869,7]
[421789922,1778160639000,-476.44,0.000279,7]
[421790037,1778160639000,-150.0,0.00031011,2]
[421789920,1778160639000,-150.0,0.00027823,7]
[421789912,1778160639000,-296.1174454,0.000278,2]
[421789928,1778160639000,-6358.93775191,0.00028628,2]
[421789919,1778160639000,-150.0,0.00027823,7]
[421789924,1778160639000,-150.0,0.00028311,7]
[421789935,1778160639000,-150.09,0.0002869,7]
[421789911,1778160639000,-977.84439096,0.000278,2]
[421789933,1778160639000,-160.78,0.0002863,2]
[421789926,1778160639000,-150.0,0.00028555,7]
[421789961,1778160639000,-150.09,0.00028931,30]
[421789959,1778160639000,-160.78,0.00028871,7]
[421789957,1778160639000,-150.09,0.00028871,7]
[421789955,1778160639000,-160.78,0.0002881,2]
[421789947,1778160639000,-5291.36,0.000288,14]
[421789963,1778160639000,-160.78,0.00028931,30]
[421789950,1778160639000,-17930.6,0.000288,7]
[421789944,1778160639000,-150.0,0.000288,7]
[421789939,1778160639000,-150.09,0.0002875,30]
[421789941,1778160639000,-160.78,0.0002875,30]
[421789916,1778160639000,-150.0,0.00027823,7]
[421789953,1778160639000,-150.09,0.0002881,2]
[421790106,1778160640000,-427.0,0.00034752,30]
[421790117,1778160640000,-3242.44051814,0.00035093,2]
[421790107,1778160640000,-1055.51550585,0.00035,120]
[421790103,1778160640000,-17930.6,0.000345,7]
[421790099,1778160640000,-151.0,0.00034182,7]
[421790100,1778160640000,-150.0,0.0003419,2]
[421790101,1778160640000,-500.0,0.00034458,5]
[421790119,1778160640000,-3136.879313,0.00035326,2]
[421790097,1778160640000,-1055.51550585,0.000339,120]
[421790102,1778160640000,-5291.36,0.000345,14]
[421790104,1778160640000,-919.0,0.00034752,30]
[421790113,1778160640000,-502.50768999,0.00035006,5]
[421790111,1778160640000,-2151.83,0.00035,30]
[421790121,1778160640000,-164.04984017,0.00035616,60]
[421790109,1778160640000,-2439.17105514,0.00035,7]
[421790123,1778160640000,-500.0,0.00035673,5]
[421790115,1778160640000,-543.32931302,0.00035093,2]
[421790136,1778160640000,-17930.6,0.00036,7]
[421790125,1778160640000,-160.0,0.000358,120]
[421790138,1778160640000,-1484.87793823,0.00036069,2]
[421790142,1778160640000,-500.0,0.00036185,7]
[421790141,1778160640000,-151.0,0.00036153,30]
[421790098,1778160640000,-200.0,0.00034035,10]
[421790140,1778160640000,-6358.93775191,0.00036143,2]
[421790108,1778160640000,-4808.55576742,0.00035,7]
[421790105,1778160640000,-496.0,0.00034752,30]
[421790052,1778160640000,-319.19588027,0.000316,2]
[421790093,1778160640000,-2151.83,0.000334,30]
[421790129,1778160640000,-150.0,0.00035899,2]
[421790041,1778160640000,-200.0,0.00031096,2]
[421790039,1778160640000,-312.07,0.00031096,2]
[421790044,1778160640000,-151.0,0.0003123,30]
[421790046,1778160640000,-154.0,0.0003123,30]
[421790048,1778160640000,-319.19588029,0.000316,2]
[421790056,1778160640000,-17930.6,0.000316,7]
[421790060,1778160640000,-1055.51550585,0.00032,120]
[421790058,1778160640000,-313.0,0.000319,2]
[421790063,1778160640000,-225.77,0.00032,120]
[421790050,1778160640000,-319.19588027,0.000316,2]
[421790095,1778160640000,-225.79,0.00033644,120]
[421790067,1778160640000,-151.0,0.0003221,5]
[421790054,1778160640000,-5291.36,0.000316,14]
[421790071,1778160640000,-6358.93775191,0.00032385,2]
[421790069,1778160640000,-159.0,0.0003223,30]
[421790073,1778160640000,-543.32931302,0.00032406,2]
[421790076,1778160640000,-150.0,0.00032562,2]
[421790084,1778160640000,-5291.36,0.00033,14]
[421790088,1778160640000,-6044.0,0.0003322,2]
[421790082,1778160640000,-476.44,0.00033,7]
[421790086,1778160640000,-17930.6,0.00033,7]
[421790080,1778160640000,-1055.51550585,0.00033,120]
[421790090,1778160640000,-3626.0,0.0003322,2]
[421790065,1778160640000,-2151.83,0.00032,7]
[421790143,1778160640000,-500.0,0.00036185,7]
[421790078,1778160640000,-225.77,0.00032822,120]
[421790128,1778160640000,-476.44,0.000358,7]
[421790170,1778160640000,-333.33333,0.0003683,83]
[421790171,1778160640000,-2306.0,0.00036839,11]
[421790174,1778160640000,-5291.36,0.000369,14]
[421790176,1778160640000,-588326.0046813,0.00036961,2]
[421790175,1778160640000,-17930.6,0.000369,7]
[421790178,1778160640000,-13392.16079509,0.00036985,2]
[421790181,1778160640000,-1025.18,0.00037,2]
[421790197,1778160640000,-3120.98650817,0.00037142,2]
[421790183,1778160640000,-250.0,0.00037,30]
[421790180,1778160640000,-13392.16079509,0.00036992,2]
[421790189,1778160640000,-2306.0,0.00037091,11]
[421790190,1778160640000,-160.0,0.000371,64]
[421790186,1778160640000,-949901.8549922,0.00037053,2]
[421790179,1778160640000,-565537.50906895,0.00036987,2]
[421790185,1778160640000,-565537.50906895,0.00037019,2]
[421790184,1778160640000,-949901.8549922,0.00037018,2]
[421790187,1778160640000,-588326.0046813,0.00037057,2]
[421790188,1778160640000,-163.0,0.00037091,11]
[421790192,1778160640000,-93792.28119535,0.00037101,2]
[421790191,1778160640000,-200.0,0.000371,10]
[421790193,1778160640000,-3120.98650817,0.00037114,2]
[421790195,1778160640000,-1581.0,0.00037126,11]
[421790194,1778160640000,-3859.319848,0.0003712,2]
[421790196,1778160640000,-93792.28119535,0.00037135,2]
[421790144,1778160640000,-500.0,0.00036185,7]
[421790173,1778160640000,-333.33334,0.0003688,83]
[421790168,1778160640000,-158.879962,0.0003682,7]
[421790182,1778160640000,-160.0,0.00037,30]
[421790166,1778160640000,-158.879962,0.0003682,7]
[421790169,1778160640000,-158.879962,0.0003682,7]
[421790132,1778160640000,-1055.51550585,0.00036,120]
[421790149,1778160640000,-2600.78,0.00036251,10]
[421790151,1778160640000,-1064.46739636,0.0003635,20]
[421790152,1778160640000,-1003.12381755,0.0003635,20]
[421790150,1778160640000,-1079.80229612,0.0003635,20]
[421790146,1778160640000,-2151.83,0.000362,30]
[421790147,1778160640000,-2468.76,0.0003622,2]
[421790134,1778160640000,-5291.36,0.00036,14]
[421790148,1778160640000,-3626.0,0.0003622,2]
[421790153,1778160640000,-1014.48559546,0.0003635,20]
[421790155,1778160640000,-1000.0,0.00036495,5]
[421790154,1778160640000,-1284.36951021,0.0003635,20]
[421790145,1778160640000,-546.46,0.00036185,7]
[421790156,1778160640000,-160.0,0.000365,120]
[421790157,1778160640000,-450.0,0.00036699,2]
[421790167,1778160640000,-158.879962,0.0003682,7]
[421790164,1778160640000,-333.0,0.00036795,120]
[421790161,1778160640000,-2319.72410669,0.00036711,5]
[421790162,1778160640000,-2405.55389864,0.00036711,5]
[421790177,1778160640000,-234.0,0.00036984,2]
[421790159,1778160640000,-2157.14243826,0.00036711,5]
[421790165,1778160640000,-47517.53808494,0.0003682,2]
[421790160,1778160640000,-2236.95670848,0.00036711,5]
[421790158,1778160640000,-2080.17592889,0.00036711,5]
[421790163,1778160640000,-2023.1798265,0.00036711,5]
[421790233,1778160641000,-666.72878,0.00037165,30]
[421790227,1778160641000,-200.0,0.00037165,30]
[421790229,1778160641000,-500.0,0.00037165,30]
[421790230,1778160641000,-642.94,0.00037165,30]
[421790232,1778160641000,-151.0,0.00037165,30]
[421790234,1778160641000,-220.0,0.00037165,30]
[421790225,1778160641000,-620.0,0.00037165,30]
[421790231,1778160641000,-220.0,0.00037165,30]
[421790236,1778160641000,-151.0,0.00037165,30]
[421790235,1778160641000,-500.0,0.00037165,30]
[421790238,1778160641000,-500.0,0.00037165,30]
[421790248,1778160641000,-151.0,0.00037165,30]
[421790243,1778160641000,-500.0,0.00037165,30]
[421790244,1778160641000,-151.0,0.00037165,30]
[421790245,1778160641000,-151.0,0.00037165,30]
[421790241,1778160641000,-151.0,0.00037165,30]
[421790240,1778160641000,-500.0,0.00037165,30]
[421790242,1778160641000,-151.0,0.00037165,30]
[421790239,1778160641000,-151.0,0.00037165,30]
[421790250,1778160641000,-500.0,0.00037165,30]
[421790249,1778160641000,-151.0,0.00037165,30]
[421790246,1778160641000,-500.0,0.00037165,30]
[421790251,1778160641000,-500.0,0.00037165,30]
[421790228,1778160641000,-151.0,0.00037165,30]
[421790237,1778160641000,-666.72878,0.00037165,30]
[421790226,1778160641000,-220.0,0.00037165,30]
[421790201,1778160641000,-1030.0,0.00037165,30]
[421790223,1778160641000,-167.81310154,0.00037165,30]
[421790252,1778160641000,-151.0,0.00037165,30]
[421790200,1778160641000,-500.0,0.00037165,30]
[421790199,1778160641000,-575.74315804,0.00037165,30]
[421790198,1778160641000,-165.51017078,0.00037165,30]
[421790203,1778160641000,-6888.0,0.00037165,30]
[421790202,1778160641000,-203.55288882,0.00037165,30]
[421790204,1778160641000,-500.0,0.00037165,30]
[421790205,1778160641000,-151.0,0.00037165,30]
[421790209,1778160641000,-518.5,0.00037165,30]
[421790211,1778160641000,-1107.63007,0.00037165,30]
[421790210,1778160641000,-151.0,0.00037165,30]
[421790206,1778160641000,-1068.11,0.00037165,30]
[421790208,1778160641000,-500.0,0.00037165,30]
[421790212,1778160641000,-7407.141672,0.00037165,30]
[421790207,1778160641000,-7142.856,0.00037165,30]
[421790214,1778160641000,-537.6845,0.00037165,30]
[421790213,1778160641000,-500.0,0.00037165,30]
[421790216,1778160641000,-500.0,0.00037165,30]
[421790219,1778160641000,-500.0,0.00037165,30]
[421790215,1778160641000,-151.0,0.00037165,30]
[421790220,1778160641000,-220.0,0.00037165,30]
[421790218,1778160641000,-151.0,0.00037165,30]
[421790217,1778160641000,-537.6845,0.00037165,30]
[421790221,1778160641000,-200.0,0.00037165,30]
[421790222,1778160641000,-151.0,0.00037165,30]
[421790224,1778160641000,-500.0,0.00037165,30]
[421790256,1778160641000,-500.0,0.00037165,30]
[421790270,1778160641000,-500.0,0.00037165,30]
[421790254,1778160641000,-151.0,0.00037165,30]
[421790285,1778160641000,-176.29,0.00037165,30]
[421790283,1778160641000,-286.62081144,0.00037165,30]
[421790287,1778160641000,-162.380719,0.00037165,30]
[421790284,1778160641000,-151.0,0.00037165,30]
[421790288,1778160641000,-182.81273,0.00037165,30]
[421790289,1778160641000,-162.380719,0.00037165,30]
[421790291,1778160641000,-196.59114265,0.00037165,30]
[421790294,1778160641000,-219.23011724,0.00037165,30]
[421790253,1778160641000,-1000.0,0.00037165,30]
[421790293,1778160641000,-211.40802048,0.00037165,30]
[421790296,1778160641000,-151.0,0.00037165,7]
[421790282,1778160641000,-170.0,0.00037165,30]
[421790297,1778160641000,-151.0,0.00037165,7]
[421790295,1778160641000,-227.34163158,0.00037165,30]
[421790299,1778160641000,-222.298615,0.00037165,7]
[421790301,1778160641000,-222.298615,0.00037165,7]
[421790300,1778160641000,-222.298615,0.00037165,7]
[421790303,1778160641000,-151.0,0.00037165,7]
[421790302,1778160641000,-222.298615,0.00037165,7]
[421790308,1778160641000,-310.0,0.00037178,43]
[421790307,1778160641000,-883.32876101,0.0003717,2]
[421790306,1778160641000,-151.0,0.00037165,7]
[421790305,1778160641000,-177.225335,0.00037165,7]
[421790304,1778160641000,-151.0,0.00037165,7]
[421790292,1778160641000,-203.86501493,0.00037165,30]
[421790286,1778160641000,-156.587,0.00037165,30]
[421790298,1778160641000,-151.0,0.00037165,7]
[421790279,1778160641000,-319.18330729,0.00037165,30]
[421790255,1778160641000,-500.0,0.00037165,30]
[421790281,1778160641000,-161.04941715,0.00037165,30]
[421790258,1778160641000,-151.0,0.00037165,30]
[421790257,1778160641000,-544.54252,0.00037165,30]
[421790259,1778160641000,-1000.0,0.00037165,30]
[421790261,1778160641000,-500.0,0.00037165,30]
[421790260,1778160641000,-500.0,0.00037165,30]
[421790263,1778160641000,-1000.0,0.00037165,30]
[421790266,1778160641000,-151.0,0.00037165,30]
[421790262,1778160641000,-151.0,0.00037165,30]
[421790267,1778160641000,-207.44360982,0.00037165,30]
[421790264,1778160641000,-500.0,0.00037165,30]
[421790247,1778160641000,-500.0,0.00037165,30]
[421790268,1778160641000,-500.0,0.00037165,30]
[421790271,1778160641000,-621.25589089,0.00037165,30]
[421790272,1778160641000,-151.0,0.00037165,30]